[Event "*** Titled Tuesday Blitz"]
[Site "Chess.com"]
[Date "2019.12.03"]
[Round "8"]
[White "Chempiblinka"]
[Black "olksuna"]
[Result "1/2-1/2"]
[WhiteElo "2376"]
[BlackElo "2594"]
[TimeControl "180+2"]
[EndTime "14:54:50 PST"]
[Termination "Game drawn by repetition"]

1. Nf3 {[%clk 0:03:01.9]} 1... d5 {[%clk 0:03:00]} 2. g3 {[%clk 0:02:59.5]} 2...
Bf5 {[%clk 0:02:55.3]} 3. Bg2 {[%clk 0:02:58.7]} 3... e6 {[%clk 0:02:56.6]} 4.
O-O {[%clk 0:02:59]} 4... c6 {[%clk 0:02:56.1]} 5. d3 {[%clk 0:03:00.4]} 5... h6
{[%clk 0:02:57]} 6. Nbd2 {[%clk 0:03:01.8]} 6... Nf6 {[%clk 0:02:58.5]} 7. c4
{[%clk 0:03:03.4]} 7... Be7 {[%clk 0:02:59.1]} 8. a3 {[%clk 0:03:04.5]} 8... a5
{[%clk 0:02:59.7]} 9. Rb1 {[%clk 0:03:04.1]} 9... Na6 {[%clk 0:02:59.3]} 10. b3
{[%clk 0:03:00.3]} 10... O-O {[%clk 0:02:58.8]} 11. Bb2 {[%clk 0:02:59.7]} 11...
Re8 {[%clk 0:03:00]} 12. Qc1 {[%clk 0:02:55.7]} 12... Bh7 {[%clk 0:02:59]} 13.
Bc3 {[%clk 0:02:55]} 13... Nc5 {[%clk 0:02:57.2]} 14. b4 {[%clk 0:02:52.3]}
14... axb4 {[%clk 0:02:56.5]} 15. axb4 {[%clk 0:02:54.2]} 15... Na4 {[%clk
0:02:57.9]} 16. Ba1 {[%clk 0:02:52.7]} 16... Bf8 {[%clk 0:02:54.3]} 17. b5
{[%clk 0:02:51.7]} 17... Nd7 {[%clk 0:02:54.3]} 18. bxc6 {[%clk 0:02:52]} 18...
bxc6 {[%clk 0:02:55.5]} 19. Nd4 {[%clk 0:02:47]} 19... Ra6 {[%clk 0:02:47.3]}
20. Qc2 {[%clk 0:02:44.1]} 20... Ndc5 {[%clk 0:02:39.8]} 21. cxd5 {[%clk
0:02:26.5]} 21... cxd5 {[%clk 0:02:38.9]} 22. Rb5 {[%clk 0:02:22]} 22... Qa8
{[%clk 0:02:31.3]} 23. N4f3 {[%clk 0:02:12.8]} 23... Rc8 {[%clk 0:02:27.9]} 24.
Rc1 {[%clk 0:02:05.6]} 24... Nb6 {[%clk 0:02:21.5]} 25. Qb1 {[%clk 0:02:01.9]}
25... Nbd7 {[%clk 0:02:20.7]} 26. Bd4 {[%clk 0:01:59]} 26... Ra5 {[%clk
0:02:07.8]} 27. Rxa5 {[%clk 0:01:51.2]} 27... Qxa5 {[%clk 0:02:07.2]} 28. Nb3
{[%clk 0:01:52.4]} 28... Qa3 {[%clk 0:01:59.1]} 29. Nxc5 {[%clk 0:01:45]} 29...
Bxc5 {[%clk 0:01:47.2]} 30. Rc3 {[%clk 0:01:27.1]} 30... Qa5 {[%clk 0:01:20.5]}
31. Qc1 {[%clk 0:01:25.9]} 31... Rc7 {[%clk 0:01:20]} 32. h3 {[%clk 0:01:09.1]}
32... Bd6 {[%clk 0:01:17.7]} 33. Rc6 {[%clk 0:00:59.2]} 33... Nb8 {[%clk
0:01:05.5]} 34. Rc2 {[%clk 0:00:54.8]} 34... Rxc2 {[%clk 0:00:59.5]} 35. Qxc2
{[%clk 0:00:56.7]} 35... Qc7 {[%clk 0:01:01]} 36. Qb2 {[%clk 0:00:57.8]} 36...
f6 {[%clk 0:00:59.8]} 37. Nh4 {[%clk 0:00:51.2]} 37... Nc6 {[%clk 0:00:57.9]}
38. Bc3 {[%clk 0:00:51.1]} 38... Kf7 {[%clk 0:00:47]} 39. f4 {[%clk 0:00:45.3]}
39... Qa7+ {[%clk 0:00:32.4]} 40. Kh2 {[%clk 0:00:41.9]} 40... Ke7 {[%clk
0:00:32.6]} 41. e4 {[%clk 0:00:38.1]} 41... dxe4 {[%clk 0:00:33.8]} 42. dxe4
{[%clk 0:00:39.5]} 42... Bc5 {[%clk 0:00:29.1]} 43. e5 {[%clk 0:00:32.3]} 43...
Nd4 {[%clk 0:00:10.8]} 44. exf6+ {[%clk 0:00:29.2]} 44... gxf6 {[%clk
0:00:11.7]} 45. Nf3 {[%clk 0:00:22.5]} 45... Nxf3+ {[%clk 0:00:11.2]} 46. Bxf3
{[%clk 0:00:24.4]} 46... Qb6 {[%clk 0:00:12.8]} 47. Bxf6+ {[%clk 0:00:24.5]}
47... Kf7 {[%clk 0:00:14.5]} 48. Bh5+ {[%clk 0:00:24.8]} 48... Bg6 {[%clk
0:00:15.7]} 49. Bxg6+ {[%clk 0:00:24.1]} 49... Kxg6 {[%clk 0:00:12.9]} 50. Qxb6
{[%clk 0:00:26]} 50... Bxb6 {[%clk 0:00:14.4]} 51. Be5 {[%clk 0:00:27.9]} 51...
Kf5 {[%clk 0:00:13.1]} 52. g4+ {[%clk 0:00:28]} 52... Ke4 {[%clk 0:00:14.3]} 53.
Kg3 {[%clk 0:00:29.4]} 53... Be3 {[%clk 0:00:13.5]} 54. Bd6 {[%clk 0:00:26.6]}
54... Bd2 {[%clk 0:00:13.8]} 55. Bc7 {[%clk 0:00:23.6]} 55... Be1+ {[%clk
0:00:14.2]} 56. Kg2 {[%clk 0:00:24.4]} 56... Bd2 {[%clk 0:00:15.5]} 57. Kg3
{[%clk 0:00:24]} 57... Be1+ {[%clk 0:00:16.9]} 58. Kg2 {[%clk 0:00:25.1]} 58...
Bd2 {[%clk 0:00:18.3]} 59. Kg3 {[%clk 0:00:19.7]} 1/2-1/2

[Event "*** Titled Tuesday Blitz"]
[Site "Chess.com"]
[Date "2019.12.03"]
[Round "8"]
[White "sergeikim"]
[Black "Leonid_Starozhilov"]
[Result "0-1"]
[WhiteElo "2498"]
[BlackElo "2673"]
[TimeControl "180+2"]
[EndTime "14:54:52 PST"]
[Termination "Leonid_Starozhilov won by checkmate"]

1. d4 {[%clk 0:03:01.6]} 1... Nf6 {[%clk 0:03:00.1]} 2. c4 {[%clk 0:03:02.3]}
2... g6 {[%clk 0:03:01.5]} 3. Nc3 {[%clk 0:03:02]} 3... Bg7 {[%clk 0:03:03.1]}
4. e4 {[%clk 0:03:02.6]} 4... d6 {[%clk 0:03:04.7]} 5. Nge2 {[%clk 0:03:03.6]}
5... h5 {[%clk 0:03:03.2]} 6. h3 {[%clk 0:03:00.5]} 6... Nc6 {[%clk 0:02:40.6]}
7. Be3 {[%clk 0:02:57.2]} 7... a6 {[%clk 0:02:37.3]} 8. a4 {[%clk 0:02:51.1]}
8... Nb4 {[%clk 0:02:37.1]} 9. a5 {[%clk 0:02:48.7]} 9... Nd7 {[%clk 0:02:29.9]}
10. g3 {[%clk 0:02:34.9]} 10... c5 {[%clk 0:02:28.9]} 11. Bg2 {[%clk 0:02:29]}
11... O-O {[%clk 0:02:25.7]} 12. O-O {[%clk 0:02:25.8]} 12... cxd4 {[%clk
0:02:26.5]} 13. Bxd4 {[%clk 0:02:25.3]} 13... Nc5 {[%clk 0:02:28.2]} 14. Bxg7
{[%clk 0:02:24.2]} 14... Kxg7 {[%clk 0:02:30.1]} 15. Nd5 {[%clk 0:02:06.2]}
15... Ncd3 {[%clk 0:02:04.1]} 16. Qd2 {[%clk 0:01:52.9]} 16... Nxd5 {[%clk
0:02:01.7]} 17. exd5 {[%clk 0:01:49.2]} 17... Ne5 {[%clk 0:01:58.3]} 18. Qd4
{[%clk 0:01:29.3]} 18... Kh7 {[%clk 0:01:33.6]} 19. f4 {[%clk 0:01:16.9]} 19...
Nd7 {[%clk 0:01:34.6]} 20. b4 {[%clk 0:01:13.9]} 20... Nf6 {[%clk 0:01:08.9]}
21. Nc3 {[%clk 0:01:09.7]} 21... Bf5 {[%clk 0:00:48]} 22. Rfe1 {[%clk
0:00:56.1]} 22... Rc8 {[%clk 0:00:45.6]} 23. Na4 {[%clk 0:00:51.4]} 23... Re8
{[%clk 0:00:36]} 24. Nb6 {[%clk 0:00:50.6]} 24... Rc7 {[%clk 0:00:33.3]} 25.
Rad1 {[%clk 0:00:47.2]} 25... Nd7 {[%clk 0:00:32.1]} 26. Rd2 {[%clk 0:00:32.7]}
26... Nf6 {[%clk 0:00:18.9]} 27. Rde2 {[%clk 0:00:31.3]} 27... Kg8 {[%clk
0:00:15]} 28. Kh2 {[%clk 0:00:28.7]} 28... Kh7 {[%clk 0:00:14.9]} 29. Bf3 {[%clk
0:00:22.1]} 29... Kg8 {[%clk 0:00:15.8]} 30. Kg2 {[%clk 0:00:22.5]} 30... Bc8
{[%clk 0:00:12.9]} 31. Rh1 {[%clk 0:00:16.2]} 31... e6 {[%clk 0:00:08.5]} 32.
dxe6 {[%clk 0:00:14.5]} 32... Bxe6 {[%clk 0:00:09.1]} 33. Rhe1 {[%clk
0:00:14.7]} 33... Rce7 {[%clk 0:00:10.2]} 34. Qxf6 {[%clk 0:00:11.4]} 34... Qc7
{[%clk 0:00:08.3]} 35. Qd4 {[%clk 0:00:09.6]} 35... Kh7 {[%clk 0:00:07.6]} 36.
Nd5 {[%clk 0:00:06.8]} 36... Bxd5 {[%clk 0:00:08.5]} 37. Rxe7 {[%clk 0:00:07.3]}
37... Bxf3+ {[%clk 0:00:08.3]} 38. Kxf3 {[%clk 0:00:07.8]} 38... Rxe7 {[%clk
0:00:09.9]} 39. Rxe7 {[%clk 0:00:07.4]} 39... Qxe7 {[%clk 0:00:11.8]} 40. Qe4
{[%clk 0:00:08.5]} 40... Qd7 {[%clk 0:00:12.6]} 41. g4 {[%clk 0:00:09.7]} 41...
hxg4+ {[%clk 0:00:13.4]} 42. hxg4 {[%clk 0:00:10.8]} 42... Kg7 {[%clk
0:00:14.9]} 43. Qd4+ {[%clk 0:00:10.3]} 43... Kg8 {[%clk 0:00:16.1]} 44. Qe4
{[%clk 0:00:11.3]} 44... Qa4 {[%clk 0:00:15.2]} 45. Qxb7 {[%clk 0:00:10]} 45...
Qb3+ {[%clk 0:00:16.5]} 46. Kf2 {[%clk 0:00:10]} 46... Qb2+ {[%clk 0:00:17.1]}
47. Kf3 {[%clk 0:00:10.5]} 47... Qc3+ {[%clk 0:00:18.2]} 48. Kf2 {[%clk
0:00:11.4]} 48... Qd2+ {[%clk 0:00:18.5]} 49. Kf3 {[%clk 0:00:12.3]} 49... Qd1+
{[%clk 0:00:19.9]} 50. Kg3 {[%clk 0:00:13]} 50... Qg1+ {[%clk 0:00:19.4]} 51.
Kh4 {[%clk 0:00:12.8]} 51... Qh2+ {[%clk 0:00:18.4]} 52. Kg5 {[%clk 0:00:13.4]}
52... Kg7 {[%clk 0:00:20.1]} 53. f5 {[%clk 0:00:12.7]} 53... Qh6# {[%clk
0:00:21]} 0-1

[Event "*** Titled Tuesday Blitz"]
[Site "Chess.com"]
[Date "2019.12.03"]
[Round "8"]
[White "VeraNebolsina"]
[Black "SHIVACalypso"]
[Result "1-0"]
[WhiteElo "2367"]
[BlackElo "2280"]
[TimeControl "180+2"]
[EndTime "14:55:05 PST"]
[Termination "VeraNebolsina won by resignation"]

1. e4 {[%clk 0:02:30.8]} 1... e6 {[%clk 0:02:58.9]} 2. d4 {[%clk 0:02:27.2]}
2... d5 {[%clk 0:03:00.1]} 3. exd5 {[%clk 0:02:22.7]} 3... exd5 {[%clk 0:03:02]}
4. Bd3 {[%clk 0:02:20.2]} 4... Bd6 {[%clk 0:03:01.5]} 5. Nf3 {[%clk 0:02:17.9]}
5... Nf6 {[%clk 0:03:00.4]} 6. Qe2+ {[%clk 0:02:18.4]} 6... Qe7 {[%clk 0:02:59]}
7. Qxe7+ {[%clk 0:02:18.8]} 7... Bxe7 {[%clk 0:03:00.9]} 8. Bf4 {[%clk
0:02:18.9]} 8... c6 {[%clk 0:02:59.1]} 9. O-O {[%clk 0:02:19.1]} 9... O-O {[%clk
0:02:50.6]} 10. Re1 {[%clk 0:02:19]} 10... Re8 {[%clk 0:02:40.4]} 11. h3 {[%clk
0:02:19.1]} 11... h6 {[%clk 0:02:37.5]} 12. Nbd2 {[%clk 0:02:11.7]} 12... Be6
{[%clk 0:02:36.5]} 13. Bh2 {[%clk 0:02:10.3]} 13... Nbd7 {[%clk 0:02:33.6]} 14.
c3 {[%clk 0:01:57.3]} 14... c5 {[%clk 0:02:28.4]} 15. dxc5 {[%clk 0:01:41.8]}
15... Nxc5 {[%clk 0:02:28.4]} 16. Bc2 {[%clk 0:01:41.7]} 16... Rad8 {[%clk
0:02:11.6]} 17. Nd4 {[%clk 0:01:36.8]} 17... Bd6 {[%clk 0:02:04.3]} 18. b4
{[%clk 0:01:33.7]} 18... Bxh2+ {[%clk 0:02:01.3]} 19. Kxh2 {[%clk 0:01:34.7]}
19... Ncd7 {[%clk 0:01:21.1]} 20. f4 {[%clk 0:01:34.9]} 20... Nb6 {[%clk
0:01:18.7]} 21. a4 {[%clk 0:01:15.2]} 21... Bd7 {[%clk 0:01:10.2]} 22. a5 {[%clk
0:01:11.7]} 22... Nc4 {[%clk 0:01:10.5]} 23. Nxc4 {[%clk 0:01:10.3]} 23... dxc4
{[%clk 0:01:12.4]} 24. b5 {[%clk 0:00:39.2]} 24... Nd5 {[%clk 0:01:09.6]} 25. b6
{[%clk 0:00:23.9]} 25... axb6 {[%clk 0:01:02.1]} 26. axb6 {[%clk 0:00:24.9]}
26... Nxb6 {[%clk 0:01:03.5]} 27. Reb1 {[%clk 0:00:24.6]} 27... Nd5 {[%clk
0:01:02.9]} 28. Rxb7 {[%clk 0:00:25.4]} 28... Nxc3 {[%clk 0:00:55.1]} 29. Raa7
{[%clk 0:00:26.2]} 29... Be6 {[%clk 0:00:10.9]} 30. Nxe6 {[%clk 0:00:24.4]}
30... Rxe6 {[%clk 0:00:12.8]} 31. Rxf7 {[%clk 0:00:24.1]} 31... Ne4 {[%clk
0:00:11.5]} 32. Rxg7+ {[%clk 0:00:23.1]} 32... Kh8 {[%clk 0:00:07.8]} 33. f5
{[%clk 0:00:16.8]} 33... Re5 {[%clk 0:00:07.2]} 34. Rh7+ {[%clk 0:00:12]} 34...
Kg8 {[%clk 0:00:07.7]} 35. Rhg7+ {[%clk 0:00:08.6]} 35... Kh8 {[%clk 0:00:08.6]}
36. Rh7+ {[%clk 0:00:08.9]} 36... Kg8 {[%clk 0:00:09.3]} 37. f6 {[%clk
0:00:10.2]} 37... Nxf6 {[%clk 0:00:09.5]} 38. Rag7+ {[%clk 0:00:08.2]} 38... Kf8
{[%clk 0:00:09.8]} 39. Rf7+ {[%clk 0:00:09.3]} 39... Kg8 {[%clk 0:00:11.2]} 40.
Rhg7+ {[%clk 0:00:10.6]} 40... Kh8 {[%clk 0:00:12.4]} 41. Rg6 {[%clk 0:00:12]}
41... Re2 {[%clk 0:00:05.9]} 42. Rgxf6 {[%clk 0:00:06.1]} 42... Rxc2 {[%clk
0:00:06.2]} 43. Rxh6+ {[%clk 0:00:05.4]} 43... Kg8 {[%clk 0:00:07.3]} 44. Rf4
{[%clk 0:00:06.1]} 44... Rdd2 {[%clk 0:00:07.7]} 45. Rg6+ {[%clk 0:00:07.1]}
45... Kh7 {[%clk 0:00:08.2]} 46. Rg3 {[%clk 0:00:08]} 46... Rd6 {[%clk
0:00:08.8]} 47. Rf7+ {[%clk 0:00:05.1]} 47... Kh8 {[%clk 0:00:08.7]} 48. Rg4
{[%clk 0:00:05.9]} 48... Rh6 {[%clk 0:00:04.8]} 49. Rd4 {[%clk 0:00:06.3]} 49...
Rg6 {[%clk 0:00:02.5]} 50. Rh4+ {[%clk 0:00:05.7]} 50... Rh6 {[%clk 0:00:03.5]}
51. Rxh6+ {[%clk 0:00:06.2]} 1-0

[Event "*** Titled Tuesday Blitz"]
[Site "Chess.com"]
[Date "2019.12.03"]
[Round "8"]
[White "Squirlolz"]
[Black "1977Ivan"]
[Result "0-1"]
[WhiteElo "2652"]
[BlackElo "2797"]
[TimeControl "180+2"]
[EndTime "14:55:21 PST"]
[Termination "1977Ivan won on time"]

1. e4 {[%clk 0:03:00.7]} 1... c6 {[%clk 0:03:00.8]} 2. Nf3 {[%clk 0:03:00.8]}
2... d5 {[%clk 0:03:02]} 3. Nc3 {[%clk 0:03:02.5]} 3... dxe4 {[%clk 0:03:02.1]}
4. Nxe4 {[%clk 0:03:03.8]} 4... Nf6 {[%clk 0:03:03.6]} 5. Qe2 {[%clk 0:03:05.1]}
5... Na6 {[%clk 0:03:02.1]} 6. Nxf6+ {[%clk 0:02:51.4]} 6... gxf6 {[%clk
0:03:01.9]} 7. d3 {[%clk 0:02:51]} 7... Bg4 {[%clk 0:02:46.9]} 8. h3 {[%clk
0:02:27.7]} 8... Bh5 {[%clk 0:02:47.5]} 9. Be3 {[%clk 0:02:29.3]} 9... e6 {[%clk
0:02:35.4]} 10. g3 {[%clk 0:02:18.4]} 10... Qa5+ {[%clk 0:02:22.3]} 11. Bd2
{[%clk 0:01:45.1]} 11... Nb4 {[%clk 0:02:19.5]} 12. g4 {[%clk 0:01:34.1]} 12...
Bg6 {[%clk 0:02:15.4]} 13. Bc3 {[%clk 0:01:21]} 13... Qd8 {[%clk 0:02:00.9]} 14.
Bg2 {[%clk 0:01:14]} 14... Nd5 {[%clk 0:02:00]} 15. Bd2 {[%clk 0:01:15.1]} 15...
Bd6 {[%clk 0:02:00.3]} 16. O-O-O {[%clk 0:01:11.8]} 16... Nf4 {[%clk 0:01:59]}
17. Bxf4 {[%clk 0:01:12.8]} 17... Bxf4+ {[%clk 0:02:00.1]} 18. Kb1 {[%clk
0:01:14.7]} 18... Qd6 {[%clk 0:01:57.5]} 19. Nd2 {[%clk 0:01:10.7]} 19... O-O-O
{[%clk 0:01:56.3]} 20. Nc4 {[%clk 0:00:58.9]} 20... Qc7 {[%clk 0:01:56.7]} 21.
Rhe1 {[%clk 0:00:58.3]} 21... h5 {[%clk 0:01:54.1]} 22. Qf3 {[%clk 0:00:57]}
22... hxg4 {[%clk 0:01:54.1]} 23. hxg4 {[%clk 0:00:58.1]} 23... Rh2 {[%clk
0:01:53.6]} 24. Rh1 {[%clk 0:00:57.7]} 24... Rdh8 {[%clk 0:01:52.1]} 25. Rxh2
{[%clk 0:00:59.2]} 25... Rxh2 {[%clk 0:01:52.9]} 26. Rh1 {[%clk 0:01:00.9]}
26... Rxh1+ {[%clk 0:01:53.2]} 27. Bxh1 {[%clk 0:01:02.8]} 27... Bg5 {[%clk
0:01:53.8]} 28. a3 {[%clk 0:00:59.9]} 28... Qh2 {[%clk 0:01:41.6]} 29. Bg2
{[%clk 0:01:00.3]} 29... Qg1+ {[%clk 0:01:30.8]} 30. Ka2 {[%clk 0:01:01.2]}
30... Qc1 {[%clk 0:01:31.1]} 31. Kb3 {[%clk 0:00:20.1]} 31... Kc7 {[%clk
0:01:21.3]} 32. Na5 {[%clk 0:00:20.4]} 32... Qf4 {[%clk 0:01:08]} 33. Qxf4+
{[%clk 0:00:21.6]} 33... Bxf4 {[%clk 0:01:09.2]} 34. Nc4 {[%clk 0:00:17.2]}
34... Bh2 {[%clk 0:01:09.7]} 35. a4 {[%clk 0:00:10.4]} 35... Bg1 {[%clk
0:01:03.4]} 36. f3 {[%clk 0:00:11.6]} 36... b6 {[%clk 0:00:49.2]} 37. Kc3 {[%clk
0:00:09.9]} 37... Bh2 {[%clk 0:00:45.5]} 38. Kd2 {[%clk 0:00:08.4]} 38... Bf4+
{[%clk 0:00:45.1]} 39. Ke2 {[%clk 0:00:09.2]} 39... b5 {[%clk 0:00:44.4]} 40.
axb5 {[%clk 0:00:07.8]} 40... cxb5 {[%clk 0:00:45.8]} 41. Na3 {[%clk 0:00:09.7]}
41... a6 {[%clk 0:00:45.7]} 42. Bf1 {[%clk 0:00:09]} 42... Kb6 {[%clk 0:00:43]}
43. Nb1 {[%clk 0:00:06.2]} 43... Bc1 {[%clk 0:00:42.4]} 44. b4 {[%clk
0:00:04.5]} 44... a5 {[%clk 0:00:39.4]} 45. bxa5+ {[%clk 0:00:05.4]} 45... Kxa5
{[%clk 0:00:40.7]} 46. Nc3 {[%clk 0:00:07.1]} 46... Bb2 {[%clk 0:00:38.4]} 47.
Ne4 {[%clk 0:00:08.4]} 47... Kb4 {[%clk 0:00:37.7]} 48. Kd2 {[%clk 0:00:09.6]}
48... Be5 {[%clk 0:00:32.7]} 49. d4 {[%clk 0:00:07.9]} 49... Bf4+ {[%clk
0:00:28]} 50. Kd3 {[%clk 0:00:08.7]} 50... f5 {[%clk 0:00:27.1]} 51. gxf5 {[%clk
0:00:08.2]} 51... Bxf5 {[%clk 0:00:28.6]} 52. Be2 {[%clk 0:00:06.2]} 52... Ka3
{[%clk 0:00:26.9]} 53. c3 {[%clk 0:00:06.3]} 53... Kb2 {[%clk 0:00:24.8]} 54.
Bd1 {[%clk 0:00:05.7]} 54... Bg3 {[%clk 0:00:21.2]} 55. Ke2 {[%clk 0:00:04.1]}
55... Bxe4 {[%clk 0:00:14.2]} 56. fxe4 {[%clk 0:00:06]} 56... Kxc3 {[%clk
0:00:15.1]} 57. d5 {[%clk 0:00:05.9]} 57... b4 {[%clk 0:00:12.3]} 58. Kf3 {[%clk
0:00:03.1]} 58... Bb8 {[%clk 0:00:12.7]} 59. dxe6 {[%clk 0:00:03.5]} 59... fxe6
{[%clk 0:00:13.1]} 60. Kg4 {[%clk 0:00:04.5]} 60... e5 {[%clk 0:00:11.9]} 61.
Kf5 {[%clk 0:00:02.7]} 61... b3 {[%clk 0:00:13.2]} 0-1

[Event "*** Titled Tuesday Blitz"]
[Site "Chess.com"]
[Date "2019.12.03"]
[Round "8"]
[White "Region_07"]
[Black "Qvalda"]
[Result "1-0"]
[WhiteElo "2392"]
[BlackElo "2493"]
[TimeControl "180+2"]
[EndTime "14:55:26 PST"]
[Termination "Region_07 won on time"]

1. d4 {[%clk 0:03:01.9]} 1... d5 {[%clk 0:02:58.6]} 2. Nf3 {[%clk 0:02:57.6]}
2... Nf6 {[%clk 0:02:59.1]} 3. Bf4 {[%clk 0:02:58.5]} 3... c5 {[%clk 0:02:59.5]}
4. e3 {[%clk 0:02:59.2]} 4... Nc6 {[%clk 0:02:59.6]} 5. h3 {[%clk 0:02:55.1]}
5... Qb6 {[%clk 0:02:59.8]} 6. Nc3 {[%clk 0:02:54.9]} 6... a6 {[%clk 0:02:52.6]}
7. dxc5 {[%clk 0:02:49.8]} 7... Qxc5 {[%clk 0:02:38.5]} 8. Bd3 {[%clk
0:02:49.4]} 8... e6 {[%clk 0:02:25.1]} 9. Qe2 {[%clk 0:02:49.7]} 9... Bd6 {[%clk
0:02:08.9]} 10. Bxd6 {[%clk 0:02:42.9]} 10... Qxd6 {[%clk 0:02:09.9]} 11. O-O
{[%clk 0:02:41.7]} 11... e5 {[%clk 0:02:08.5]} 12. e4 {[%clk 0:02:42.6]} 12...
d4 {[%clk 0:02:07.6]} 13. Nb1 {[%clk 0:02:36.3]} 13... Nh5 {[%clk 0:02:05.9]}
14. Nbd2 {[%clk 0:02:03.2]} 14... Nf4 {[%clk 0:02:05.2]} 15. Qd1 {[%clk
0:01:55.6]} 15... Qg6 {[%clk 0:01:59.2]} 16. Nh4 {[%clk 0:01:34.4]} 16... Nxh3+
{[%clk 0:01:51.4]} 17. Kh2 {[%clk 0:01:33.8]} 17... Qh6 {[%clk 0:01:48.3]} 18.
gxh3 {[%clk 0:01:18]} 18... Qxh4 {[%clk 0:01:35.1]} 19. Qf3 {[%clk 0:01:18.4]}
19... Bxh3 {[%clk 0:01:06.8]} 20. Qxh3 {[%clk 0:01:04.1]} 20... Qf4+ {[%clk
0:01:06.8]} 21. Qg3 {[%clk 0:01:03.5]} 21... Qxd2 {[%clk 0:01:01.2]} 22. Qxg7
{[%clk 0:01:01]} 22... O-O-O {[%clk 0:00:58.9]} 23. Rad1 {[%clk 0:00:42.2]}
23... Qf4+ {[%clk 0:00:57.5]} 24. Qg3 {[%clk 0:00:42.9]} 24... Qh6+ {[%clk
0:00:52.7]} 25. Qh3+ {[%clk 0:00:42.9]} 25... Qxh3+ {[%clk 0:00:53.6]} 26. Kxh3
{[%clk 0:00:44.8]} 26... Rd6 {[%clk 0:00:51.5]} 27. Kg3 {[%clk 0:00:30.9]} 27...
Rg8+ {[%clk 0:00:45.8]} 28. Kf3 {[%clk 0:00:31.7]} 28... Rf6+ {[%clk 0:00:45.4]}
29. Ke2 {[%clk 0:00:31.7]} 29... Rg2 {[%clk 0:00:45.3]} 30. c3 {[%clk
0:00:28.6]} 30... h5 {[%clk 0:00:44.3]} 31. Bc4 {[%clk 0:00:29.3]} 31... h4
{[%clk 0:00:42.8]} 32. Rd3 {[%clk 0:00:30.3]} 32... dxc3 {[%clk 0:00:36.7]} 33.
bxc3 {[%clk 0:00:30.6]} 33... Ne7 {[%clk 0:00:33.4]} 34. Rf3 {[%clk 0:00:26.7]}
34... Rxf3 {[%clk 0:00:19.2]} 35. Kxf3 {[%clk 0:00:28.6]} 35... Rg7 {[%clk
0:00:19.8]} 36. Rh1 {[%clk 0:00:29.8]} 36... Ng6 {[%clk 0:00:15.8]} 37. Rg1
{[%clk 0:00:30.5]} 37... Kd7 {[%clk 0:00:11.8]} 38. Rg5 {[%clk 0:00:26.3]} 38...
f6 {[%clk 0:00:10.5]} 39. Rg1 {[%clk 0:00:24]} 39... Ke7 {[%clk 0:00:10.9]} 40.
Bf1 {[%clk 0:00:21.5]} 40... Kf8 {[%clk 0:00:10.6]} 41. Bh3 {[%clk 0:00:22.5]}
41... b6 {[%clk 0:00:08.9]} 42. Bc8 {[%clk 0:00:18.7]} 42... a5 {[%clk
0:00:08.8]} 43. Rb1 {[%clk 0:00:15.7]} 43... Rc7 {[%clk 0:00:09.2]} 44. Bf5
{[%clk 0:00:14.5]} 44... Rxc3+ {[%clk 0:00:07.1]} 45. Kg4 {[%clk 0:00:15.7]}
45... Ne7 {[%clk 0:00:05.4]} 46. Kxh4 {[%clk 0:00:14.3]} 46... Nxf5+ {[%clk
0:00:04.6]} 47. exf5 {[%clk 0:00:16.2]} 47... Rc6 {[%clk 0:00:04.5]} 48. Kh5
{[%clk 0:00:15.4]} 48... Ke7 {[%clk 0:00:05]} 49. Kg6 {[%clk 0:00:15.3]} 49...
Rd6 {[%clk 0:00:03.8]} 50. Rc1 {[%clk 0:00:15.3]} 50... Kd7 {[%clk 0:00:04.7]}
51. a4 {[%clk 0:00:15.3]} 51... Rd2 {[%clk 0:00:03.5]} 52. Kxf6 {[%clk
0:00:15.4]} 52... e4 {[%clk 0:00:04.4]} 53. Ke5 {[%clk 0:00:14.1]} 53... Rxf2
{[%clk 0:00:05.1]} 54. Kxe4 {[%clk 0:00:15.2]} 54... Ra2 {[%clk 0:00:05.5]} 55.
Rc4 {[%clk 0:00:16.2]} 55... Re2+ {[%clk 0:00:05.1]} 56. Kd5 {[%clk 0:00:15.8]}
56... Rd2+ {[%clk 0:00:04]} 57. Ke5 {[%clk 0:00:16.9]} 57... Re2+ {[%clk
0:00:04.9]} 58. Kf6 {[%clk 0:00:17.8]} 58... Rg2 {[%clk 0:00:04.1]} 59. Kf7
{[%clk 0:00:18.1]} 59... Kd6 {[%clk 0:00:04.8]} 60. f6 {[%clk 0:00:18.3]} 60...
Kd5 {[%clk 0:00:04.9]} 61. Rh4 {[%clk 0:00:18.8]} 61... b5 {[%clk 0:00:04.2]}
62. Rh5+ {[%clk 0:00:19.3]} 62... Kc6 {[%clk 0:00:02.8]} 63. Rxb5 {[%clk
0:00:21.2]} 1-0